fUST/lending_fUST_20240628
["ID","MTS","AMOUNT","RATE_DAILY","PERIOD"]
[330504604,1719525044604,-500.0,0.00043835,120]
[330504605,1719525044613,-500.0,0.00043835,120]
[330504606,1719525044622,-500.0,0.00043835,120]
[330504607,1719525044631,-500.0,0.00043835,120]
[330504608,1719525044641,-30280.70589372,0.00043835,120]
[330504609,1719525044893,-1312.13232881,0.00043835,120]
[330504610,1719525045196,-444.64202769,0.00039476,2]
[330504611,1719525045207,-16281.87177747,0.00043835,120]
[330504612,1719525045216,-500.0,0.00043835,120]
[330504613,1719525045226,-737.84,0.00043835,120]
[330504614,1719525045236,-6767.36,0.00043835,120]
[330504615,1719525045245,-413.45110651,0.00043835,120]
[330504616,1719525045257,-88.58889349,0.00043835,120]
[330504617,1719525045266,-517.36878077,0.00043835,120]
[330504618,1719525045275,-500.0,0.00043835,120]
[330504619,1719525045285,-500.0,0.00043835,120]
[330504620,1719525045296,-955.66,0.00043835,120]
[330504621,1719525045307,-500.0,0.00043835,120]
[330504622,1719525045317,-500.0,0.00043835,120]
[330504623,1719525045327,-257.98127659,0.00043835,120]
[330504624,1719525045545,-1024.03872341,0.00043835,120]
[330504625,1719525045555,-527.12522653,0.00043835,120]
[330504626,1719525045566,-500.0,0.00043835,120]
[330504627,1719525045576,-665.83,0.00043835,120]
[330504628,1719525045586,-500.0,0.00043835,120]
[330504629,1719525045595,-500.0,0.00043835,120]
[330504630,1719525045605,-409.49361254,0.00043835,120]
[330504640,1719525046489,-1098.35636042,0.0003458,4]
[330504641,1719525046499,-1245.47,0.00041907,3]
[330504642,1719525046509,-90.50638746,0.00043835,120]
[330504643,1719525046518,-1114.57,0.00043835,120]
[330504644,1719525046527,-780.7,0.00043835,120]
[330504645,1719525046538,-500.0,0.00043835,120]
[330504646,1719525046548,-500.0,0.00043835,120]
[330504647,1719525046557,-500.0,0.00043835,120]
[330504648,1719525046567,-805.12,0.00043835,14]
[330504649,1719525046576,-517.33,0.00043835,120]
[330504650,1719525046584,-417.170515,0.00043835,14]
[330504651,1719525046594,-4808.18,0.00043835,21]
[330504652,1719525046604,-496.74789825,0.00043835,120]
[330504653,1719525046613,-417.170515,0.00043835,14]
[330504654,1719525046623,-500.0,0.00043835,120]
[330504655,1719525046632,-151.0,0.00043835,14]
[330504656,1719525046642,-91.95093643,0.00043835,120]
[330504657,1719525046654,-279.75,0.00043835,120]
[330504659,1719525417788,653.48024073,0.00014998,2]
[330504660,1719525417816,653.48024073,0.00014998,2]
[330504661,1719525417844,653.48024073,0.00014998,2]
[330504662,1719525417872,653.48024073,0.00014998,2]
[330504663,1719525417900,638.26535884,0.00014998,2]
[330504664,1719525417926,5572.34984345,0.00014998,2]
[330504665,1719525476002,181.6707771,0.00014998,2]
[330504666,1719525481189,10915.07478394,0.00014998,2]
[330504667,1719525767088,182.33432574,9.999e-05,2]
[330504668,1719525819561,182.33432574,0.0001212,2]
[330504669,1719525825135,4692.0915916,9.999e-05,2]
[330504670,1719525841089,677.12848532,9.999e-05,2]
[330504671,1719525851321,5309.4788982,9.999e-05,2]
[330504672,1719525857052,182.33432574,0.0001212,2]
[330504673,1719525859376,1198.348735,9.999e-05,2]
[330504674,1719525862569,1608.02847768,0.0001212,2]
[330504675,1719525876702,42185.65991976,0.0001212,2]
[330504676,1719525883040,154.83742071,9.999e-05,2]
[330504677,1719525900303,180.57898176,0.0001212,2]
[330504678,1719525909534,201.92036557,0.0001212,2]
[330504679,1719525947147,-196.224049,0.00014051,2]
[330504680,1719525947169,-827.93034571,0.00014114,2]
[330504681,1719525960551,292.95882568,9.999e-05,2]
[330504682,1719525970391,154.85288975,9.999e-05,2]
[330504683,1719525972704,154.91765981,0.0001212,2]
[330504684,1719525976529,154.85288975,9.999e-05,2]
[330504685,1719525979684,154.85288975,9.999e-05,2]
[330504686,1719525981363,191.05401401,9.999e-05,2]
[330504687,1719525984005,195.36861794,9.999e-05,2]
[330504689,1719525992668,154.85288975,9.999e-05,2]
[330504690,1719526029114,-278.79203018,0.00014114,2]
[330504691,1719526030164,-341.78070698,0.00014114,2]
[330504692,1719526030189,-181.48993542,0.00014114,2]
[330504693,1719526030210,-312.575527,0.00014214,2]
[330504694,1719526030231,-188.2908576,0.00014214,2]
[330504695,1719526030251,-237.4023889,0.00014636,2]
[330504696,1719526030280,-165.84450899,0.00014691,2]
[330504697,1719526030300,-300.0,0.00014998,2]
[330504698,1719526030320,-2115.0148568,0.00014999,2]
[330504699,1719526030341,-3925.17481635,0.00014999,2]
[330504700,1719526030362,-1749.46392446,0.00014999,2]
[330504701,1719526030386,-1103.33519031,0.00015,2]
[330504702,1719526030406,-787.3724458,0.00015407,2]
[330504703,1719526030427,-2356.88310348,0.00015882,2]
[330504704,1719526052130,-581.30419167,0.00015882,2]
[330504705,1719526068602,173.49543079,9.999e-05,2]
[330504706,1719526077168,738.31418198,0.0001212,2]
[330504707,1719526132664,-718.52396717,0.0001494,2]
[330504708,1719526132704,-303.58252636,0.0001494,2]
[330504709,1719526132750,-718.52396717,0.0001494,2]
[330504710,1719526144422,373.67425734,0.0001212,2]
[330504711,1719526150083,-1259.3695393,0.0001494,2]
[330504712,1719526150111,-1160.66139538,0.00014999,2]
[330504713,1719526150131,-524.60290255,0.00014999,2]
[330504714,1719526150152,-723.14150284,0.00015,2]
[330504715,1719526150172,-1008.7715527,0.00015582,2]
[330504716,1719526150194,-300.0,0.00015787,2]
[330504717,1719526150216,-24900.0,0.00015788,2]
[330504718,1719526150239,-205.45153777,0.00015955,2]
[330504719,1719526150261,-816.73518743,0.00016055,2]
[330504720,1719526150283,-369.92598181,0.00016155,2]
[330504721,1719526150304,-4603.13740022,0.00016255,2]
[330504722,1719526152929,-4515.72505011,0.00016255,2]
[330504723,1719526154137,-16591.393,0.00016255,2]
[330504724,1719526154960,524.60290255,9.999e-05,2]
[330504725,1719526155133,-355.46178493,0.00016255,2]
[330504726,1719526155153,-154.85288667,0.00019165,2]
[330504727,1719526155174,-490.65106447,0.00019178,2]
[330504728,1719526155193,-500.0,0.00019178,2]
[330504729,1719526155214,-196.224049,0.00021076,2]
[330504730,1719526155239,-161.7161,0.00021096,2]
[330504731,1719526155260,-369.92598176,0.00021426,2]
[330504732,1719526155281,-816.73518743,0.00021872,2]
[330504733,1719526155302,-166.666666,0.00021918,2]
[330504734,1719526155322,-30000.0,0.00022022,2]
[330504735,1719526155342,-1869.29465468,0.00023953,2]
[330504736,1719526155364,-190.68525851,0.00023953,2]
[330504737,1719526155385,-500.0,0.00025312,2]
[330504738,1719526155406,-226.67147731,0.00025312,2]
[330504739,1719526155427,-250.0,0.00025399,2]
[330504740,1719526155448,-295.44043086,0.000258,2]
[330504741,1719526155585,-295.44043086,0.000258,2]
[330504742,1719526155606,-295.44043086,0.000258,2]
[330504743,1719526155629,-548.03,0.00026607,3]
[330504744,1719526155649,-274.01,0.00026607,3]
[330504745,1719526155672,-10272.2357829,0.00026617,3]
[330504746,1719526155694,-747.56719203,0.00026627,2]
[330504747,1719526155713,-164.09138626,0.00026627,2]
[330504748,1719526155734,-369.92598176,0.00026696,2]
[330504749,1719526155754,-226.3122294,0.00026727,2]
[330504750,1719526155774,-328.64690419,0.00027536,2]
[330504751,1719526155794,-150.38524181,0.00027584,2]
[330504752,1719526155814,-816.73518743,0.00027689,2]
[330504753,1719526155844,-328.64690419,0.00027719,2]
[330504754,1719526155869,-215.14278381,0.00027777,2]
[330504755,1719526156111,-118.39002178,0.00027777,2]
[330504756,1719526156134,-333.53280559,0.00027921,2]
[330504757,1719526156157,-1096.06,0.00027977,3]
[330504758,1719526156178,-18.12435926,0.00027977,3]
[330504759,1719526156204,-529.89564074,0.00027977,3]
[330504760,1719526156226,-328.64690419,0.00028265,2]
[330504761,1719526156248,-333.53280559,0.00028271,2]
[330504762,1719526156272,-328.64690419,0.00028399,2]
[330504763,1719526156294,-6527.5242822,0.000286,7]
[330504764,1719526156314,-328.64690419,0.000286,2]
[330504765,1719526156334,-150.38524181,0.00028602,2]
[330504766,1719526156354,-155.78155911,0.00028701,2]
[330504767,1719526156374,-333.53280559,0.00029185,2]
[330504768,1719526156396,-150.38524181,0.00029465,2]
[330504769,1719526156416,-333.53280559,0.00029489,2]
[330504770,1719526156436,-333.53280559,0.00029565,2]
[330504771,1719526156456,-333.53280559,0.00029674,2]
[330504772,1719526156476,-328.64690419,0.00029716,2]
[330504773,1719526156498,-150.38524181,0.00029717,2]
[330504774,1719526156517,-158.24871207,0.00029865,2]
[330504775,1719526156536,-333.53280559,0.00029868,2]
[330504776,1719526156557,-328.64690419,0.00029905,2]
[330504777,1719526156577,-155.78155911,0.00029942,2]
[330504778,1719526156621,-150.38524181,0.0002996,2]
[330504779,1719526156657,-328.64690419,0.00029974,2]
[330504780,1719526156693,-333.53280559,0.00030029,7]
[330504781,1719526156729,-150.38524181,0.00030064,7]
[330504782,1719526156763,-328.64690419,0.00030105,7]
[330504783,1719526156795,-150.38524181,0.00030155,7]
[330504784,1719526156822,-328.64690419,0.00030337,7]
[330504785,1719526156857,-158.24871207,0.00030472,7]
[330504786,1719526156895,-333.53280559,0.00030816,7]
[330504787,1719526156921,-333.53280559,0.00030891,7]
[330504788,1719526156958,-150.38524181,0.00030938,7]
[330504789,1719526156992,-150.38524181,0.00030952,7]
[330504790,1719526157021,-328.64690419,0.00030983,7]
[330504791,1719526157057,-121.7869133,0.00031359,7]
[330504792,1719526162288,-163.751651,0.00019953,2]
[330504793,1719526179074,154.83742071,0.00014691,2]
[330504794,1719526193448,1530.03316963,0.00022022,2]
[330504795,1719526193468,449.47063521,0.00022022,2]
[330504796,1719526193487,153.92923706,0.00022022,2]
[330504797,1719526193507,155.0,0.00022022,2]
[330504815,1719526232530,-258.18004786,0.00022022,2]
[330504817,1719526232542,-636.9375,0.00022022,2]
[330504820,1719526232556,-1152.07917583,0.00022022,2]
[330504822,1719526232566,-619.42287717,0.00024185,2]
[330504824,1719526232575,-481.59504744,0.00024185,2]
[330504825,1719526232583,-662.96909256,0.00024185,2]
[330504827,1719526232595,-935.67306823,0.00024185,2]
[330504830,1719526232681,-8236.95566808,0.00024185,2]
[330504831,1719526232691,-434.84522637,0.00024517,2]
[330504833,1719526232701,-434.84522637,0.00029517,2]
[330504835,1719526232711,-211.74589229,0.00031359,7]
[330504837,1719526232720,-22.72118598,0.00031456,7]
[330504840,1719526232731,-127.66405583,0.00031456,7]
[330504842,1719526232741,-159.50123805,0.00031608,7]
[330504844,1719526232750,-150.38524181,0.0003171,7]
[330504846,1719526232759,-43.24963457,0.00031763,7]
[330504908,1719526238831,-290.28317102,0.00031763,7]
[330504909,1719526238842,-159.50123805,0.00031793,7]
[330504910,1719526238851,-333.53280559,0.00031844,7]
[330504911,1719526238861,-158.24871207,0.00031853,7]
[330504912,1719526238871,-57.83147845,0.00032036,2]
[330504913,1719526238883,-192.16852155,0.00032036,2]
[330504914,1719526238893,-328.64690419,0.00032129,7]
[330504915,1719526238902,-328.64690419,0.00032277,7]
[330504916,1719526238912,-153.0,0.00032388,2]
[330504917,1719526238921,-333.53280559,0.00032447,7]
[330504918,1719526238931,-150.38524181,0.00032469,7]
[330504919,1719526238940,-328.64690419,0.00032585,7]
[330504920,1719526238949,-159.50123805,0.00032711,7]
[330504921,1719526238958,-328.64690419,0.00032933,7]
[330504922,1719526238968,-150.38524181,0.00033272,7]
[330504923,1719526238977,-333.53280559,0.00033378,7]
[330504924,1719526238988,-328.64690419,0.00033439,7]
[330504925,1719526238998,-328.64690419,0.00033636,7]
[330504926,1719526239008,-150.38524181,0.00033652,7]
[330504927,1719526239018,-328.64690419,0.0003375,7]
[330504928,1719526239028,-155.78155912,0.00034016,7]
[330504929,1719526239038,-150.38524181,0.00034174,7]
[330504930,1719526239049,-333.53280559,0.00034247,7]
[330504931,1719526239059,-328.64690419,0.00034349,7]
[330504932,1719526239068,-10132.51168959,0.00034467,4]
[330504933,1719526239079,-434.84522637,0.00034517,2]
[330504934,1719526239088,-150.38524181,0.00034557,7]
[330504935,1719526239098,-3126.93373757,0.0003468,4]
[330504936,1719526239108,-150.38524181,0.00034682,7]
[330504937,1719526239118,-159.50123805,0.00034698,7]
[330504938,1719526239128,-328.64690419,0.00034785,7]
[330504939,1719526239137,-328.64690419,0.00034945,7]
[330504940,1719526239147,-156.360576,0.00034995,2]
[330504941,1719526239156,-199.583644,0.00034995,2]
[330504942,1719526239166,-2709.72121891,0.00035,4]
[330504943,1719526239175,-158.24871207,0.0003513,7]
[330504944,1719526239185,-150.38524181,0.00035199,7]
[330504945,1719526239194,-328.64690419,0.00035396,7]
[330504946,1719526239204,-333.53280559,0.00035515,7]
[330504947,1719526239214,-150.38524181,0.00035565,7]
[330504948,1719526239226,-333.53280559,0.00035758,7]
[330504949,1719526239238,-333.53280559,0.00035922,7]
[330504950,1719526239248,-333.53280559,0.00036142,7]
[330504951,1719526239259,-150.38524181,0.00036231,7]
[330504952,1719526239269,-1003.47797254,0.00036409,2]
[330504953,1719526239279,-333.53280559,0.00036423,7]
[330504954,1719526239288,-328.64690419,0.00036509,7]
[330504955,1719526239299,-272.90459049,0.00036512,7]
[330504956,1719526239321,-60.6282151,0.00036512,7]
[330504957,1719526239330,-328.64690419,0.0003658,7]
[330504958,1719526239340,-159.50123805,0.00036716,7]
[330504959,1719526239350,-1273.50734285,0.00036732,4]
[330504960,1719526239360,-156.360576,0.00036745,2]
[330504961,1719526239370,-333.53280559,0.00036884,7]
[330504962,1719526239380,-328.64690419,0.00037005,7]
[330504963,1719526239390,-1003.47797254,0.00037171,2]
[330504964,1719526239400,-10272.2357829,0.0003721,4]
[330504965,1719526239410,-333.53280559,0.0003722,7]
[330504966,1719526239420,-328.64690419,0.00037423,7]
[330504967,1719526239430,-150.38524181,0.00037468,7]
[330504968,1719526239440,-150.38524181,0.00037599,7]
[330504969,1719526239450,-328.64690419,0.00037613,7]
[330504970,1719526239460,-333.53280559,0.00037651,7]
[330504971,1719526239469,-161.7161,0.00037652,2]
[330504972,1719526239479,-822.08,0.00037834,3]
[330504973,1719526239490,-150.38524181,0.00037844,7]
[330504974,1719526239499,-1003.47797254,0.00037933,2]
[330504975,1719526239509,-150.38524181,0.00037979,7]
[330504976,1719526239519,-333.53280559,0.00038158,7]
[330504977,1719526239529,-517.02244669,0.00038264,4]
[330504978,1719526239539,-490.47369441,0.00038264,2]
[330504979,1719526239549,-150.38524181,0.00038348,7]
[330504980,1719526239559,-328.64690419,0.0003845,7]
[330504981,1719526239570,-328.64690419,0.0003858,7]
[330504982,1719526239580,-150.38524181,0.00038688,7]
[330504983,1719526239590,-1003.47797254,0.00038695,2]
[330504984,1719526239601,-150.38524181,0.00038703,7]
[330504985,1719526239614,-772.0,0.00038749,2]
[330504986,1719526239624,-333.53280559,0.00038904,7]
[330504987,1719526239635,-208.40210547,0.00038999,4]
[330504988,1719526239644,-457.45943987,0.00038999,4]
[330504989,1719526239656,-164.25106676,0.00039393,4]
[330504990,1719526239666,-427.50730024,0.00039393,4]
[330504991,1719526239677,-304.81000924,0.00039393,4]
[330504992,1719526239689,-4575.25,0.00039412,3]
[330504993,1719526239700,-3812.71,0.00039412,3]
[330504994,1719526239710,-41088.9431316,0.00039422,4]
[330504995,1719526239720,-5490.3,0.00039422,3]
[330504996,1719526239730,-151.0,0.00039431,2]
[330504997,1719526239740,-151.0,0.00039431,2]
[330504998,1719526239750,-151.0,0.00039431,2]
[330504999,1719526239760,-151.0,0.00039431,2]
[330505000,1719526239770,-151.0,0.00039431,2]
[330505001,1719526239780,-151.0,0.00039431,2]
[330505002,1719526239790,-151.0,0.00039431,2]
[330505003,1719526239800,-12861.57488884,0.00039432,7]
[330505004,1719526239811,-183508.49204015,0.00039432,90]
[330505005,1719526239820,-1003.47797254,0.00039457,2]
[330505006,1719526239830,-333.53280559,0.00039557,7]
[330505007,1719526239840,-333.53280572,0.00039612,7]
[330505008,1719526239850,-328.64690422,0.00039711,7]
[330505009,1719526239859,-150.38524181,0.00039715,7]
[330505010,1719526239869,-150.38524187,0.00039934,7]
[330505011,1719526239878,-500.0,0.00039972,30]
[330505012,1719526239887,-154.82195475,0.00039994,4]
[330505013,1719526239896,-154.82195475,0.00039994,4]
[330505014,1719526239906,-154.82195475,0.00039999,4]
[330505015,1719526239916,-311.43063313,0.00039999,31]
[330505016,1719526239926,-2265.94,0.00041095,120]
[330505017,1719526239935,-2265.94,0.00041369,120]
[330505018,1719526239945,-2265.94,0.00041643,120]
[330505019,1719526239954,-150.81901718,0.00041852,2]
[330505020,1719526239964,-2265.94,0.00041917,120]
[330505021,1719526239973,-2265.94,0.00042191,120]
[330505022,1719526239984,-2265.94,0.00042465,120]
[330505023,1719526239994,-1967.45654607,0.000425,30]
[330505024,1719526240003,-4478.33542159,0.000425,60]
[330505025,1719526240013,-2265.94,0.00042739,120]
[330505026,1719526240024,-5265.58028035,0.00043,30]
[330505027,1719526240034,-2265.94,0.00043013,120]
[330505028,1719526240044,-2265.94,0.00043287,120]
[330505029,1719526240055,-276.7,0.00043348,31]
[330505030,1719526240064,-2265.94,0.00043561,120]
[330505031,1719526240074,-500.0,0.000437,45]
[330505032,1719526240083,-5282.41580836,0.00043714,2]
[330505033,1719526240093,-20544.4715658,0.00043725,5]
[330505034,1719526240102,-88888.0,0.00043735,5]
[330505035,1719526240112,-276.7,0.00043736,31]
[330505036,1719526240121,-216.74,0.00043824,7]
[330505037,1719526240131,-67525.97286767,0.00043825,5]
[330505038,1719526240144,-2325.97215098,0.00043825,5]
[330505039,1719526240156,-53414.88437635,0.00043825,5]
[330505041,1719526240166,-6316.8431932,0.00043835,31]
[330505042,1719526240176,-500.0,0.00043835,120]
[330505044,1719526240186,-3000.0,0.00043835,2]
[330505045,1719526240195,-283.95938254,0.00043835,3]
[330505046,1719526240205,-500.0,0.00043835,120]
[330505047,1719526240215,-500.0,0.00043835,120]
[330505048,1719526240224,-500.0,0.00043835,120]
[330505049,1719526240234,-566.80759736,0.00043835,7]
[330505050,1719526240244,-500.0,0.00043835,120]
[330505051,1719526240255,-503.3355524,0.00043835,120]
[330505052,1719526240266,-674.16,0.00043835,120]
[330505053,1719526240276,-576.2,0.00043835,120]
[330505054,1719526240286,-500.0,0.00043835,120]
[330505055,1719526240295,-500.0,0.00043835,120]
[330505056,1719526240305,-500.0,0.00043835,120]
[330505057,1719526240316,-500.0,0.00043835,120]
[330505058,1719526240326,-500.0,0.00043835,2]
[330505059,1719526240336,-500.0,0.00043835,120]
[330505060,1719526240346,-500.0,0.00043835,120]
[330505061,1719526240355,-500.0,0.00043835,120]
[330505062,1719526240365,-500.0,0.00043835,120]
[330505063,1719526240376,-500.0,0.00043835,120]
[330505064,1719526240386,-551.55945524,0.00043835,120]
[330505065,1719526240395,-500.0,0.00043835,120]
[330505066,1719526240404,-500.0,0.00043835,120]
[330505067,1719526240414,-539.4,0.00043835,120]
[330505068,1719526240423,-500.0,0.00043835,120]
[330505069,1719526240436,-709.58,0.00043835,120]
[330505070,1719526240446,-551.97,0.00043835,120]
[330505071,1719526240456,-500.0,0.00043835,120]
[330505072,1719526240466,-1405.45,0.00043835,120]
[330505073,1719526240475,-500.0,0.00043835,120]
[330505074,1719526240485,-500.0,0.00043835,7]
[330505075,1719526240495,-1767.58,0.00043835,120]
[330505076,1719526240505,-554.89723758,0.00043835,120]
[330505077,1719526240515,-200.0,0.00043835,7]
[330505078,1719526240525,-226.31575498,0.00043835,120]
[330505079,1719526240535,-640.96226499,0.00043835,120]
[330505080,1719526240545,-500.0,0.00043835,120]
[330505081,1719526240556,-908.54,0.00043835,120]
[330505082,1719526240566,-500.0,0.00043835,120]
[330505083,1719526240575,-240.39293458,0.00043835,120]
[330505084,1719526240589,-647.43706542,0.00043835,120]
[330505085,1719526240600,-500.0,0.00043835,120]
[330505086,1719526240613,-500.0,0.00043835,120]
[330505087,1719526240623,-500.0,0.00043835,120]
[330505088,1719526240633,-500.0,0.00043835,120]
[330505089,1719526240644,-500.0,0.00043835,120]
[330505090,1719526240655,-500.0,0.00043835,120]
[330505091,1719526240664,-661.85,0.00043835,120]
[330505092,1719526240674,-500.0,0.00043835,120]
[330505093,1719526240683,-500.0,0.00043835,120]
[330505094,1719526240696,-500.0,0.00043835,30]
[330505095,1719526240705,-500.0,0.00043835,120]
[330505096,1719526240715,-889.04,0.00043835,120]
[330505097,1719526240725,-500.0,0.00043835,120]
[330505098,1719526240735,-500.0,0.00043835,120]
[330505100,1719526240744,-601.39135749,0.00043835,120]
[330505102,1719526240753,-500.0,0.00043835,120]
[330505103,1719526240763,-500.0,0.00043835,30]
[330505105,1719526240772,-500.0,0.00043835,120]
[330505106,1719526240781,-389.96631235,0.00043835,120]
[330505107,1719526240794,-110.03368765,0.00043835,120]
[330505108,1719526240804,-500.0,0.00043835,120]
[330505109,1719526240813,-500.0,0.00043835,120]
[330505110,1719526240822,-142.47215552,0.00043835,120]
[330505122,1719526241328,-972.815005,0.00034602,4]
[330505124,1719526241338,-357.52784448,0.00043835,120]
[330505125,1719526241347,-500.0,0.00043835,120]
[330505127,1719526241356,-409.92837414,0.00043835,120]
[330505187,1719526243885,-90.07162586,0.00043835,120]
[330505188,1719526243895,-23.72330689,0.00043835,120]
[330505189,1719526243909,-476.27669311,0.00043835,120]
[330505190,1719526243919,-500.0,0.00043835,120]
[330505191,1719526243928,-500.0,0.00043835,120]
[330505192,1719526243937,-500.0,0.00043835,120]
[330505193,1719526243947,-500.0,0.00043835,120]
[330505194,1719526243956,-500.0,0.00043835,120]
[330505195,1719526243966,-500.0,0.00043835,120]
[330505196,1719526243975,-500.0,0.00043835,120]
[330505197,1719526243985,-500.0,0.00043835,120]
[330505198,1719526243993,-500.0,0.00043835,120]
[330505199,1719526244003,-500.0,0.00043835,120]
[330505200,1719526244012,-500.0,0.00043835,120]
[330505201,1719526244022,-514.78628749,0.00043835,30]
[330505202,1719526244031,-500.0,0.00043835,120]
[330505203,1719526244041,-563.97083849,0.00043835,120]
[330505204,1719526244050,-500.0,0.00043835,120]
[330505205,1719526244060,-509.82413691,0.00043835,120]
[330505206,1719526244069,-761.97,0.00043835,120]
[330505207,1719526244079,-954.42,0.00043835,120]
[330505208,1719526244088,-500.0,0.00043835,120]
[330505209,1719526244097,-500.0,0.00043835,120]
[330505210,1719526244107,-500.0,0.00043835,120]
[330505211,1719526244117,-500.0,0.00043835,120]
[330505212,1719526244126,-500.0,0.00043835,120]
[330505213,1719526244135,-500.0,0.00043835,120]
[330505214,1719526244143,-452.83793313,0.00043835,120]
[330505215,1719526244152,-513.08543264,0.00043835,120]
[330505216,1719526244161,-500.0,0.00043835,120]
[330505217,1719526244170,-500.0,0.00043835,120]
[330505218,1719526244180,-500.0,0.00043835,120]
[330505219,1719526244189,-500.0,0.00043835,120]
[330505220,1719526244199,-500.0,0.00043835,120]
[330505221,1719526244208,-500.0,0.00043835,120]
[330505222,1719526244217,-500.0,0.00043835,120]
[330505224,1719526244226,-549.19,0.00043835,120]
[330505226,1719526244236,-753.67,0.00043835,120]
[330505227,1719526244245,-500.0,0.00043835,120]
[330505229,1719526244255,-500.0,0.00043835,120]
[330505231,1719526244267,-580.72,0.00043835,120]
[330505233,1719526244276,-500.0,0.00043835,120]
[330505235,1719526244286,-500.0,0.00043835,2]
[330505237,1719526244296,-589.37,0.00043835,120]
[330505238,1719526244306,-500.0,0.00043835,120]
[330505239,1719526244315,-500.0,0.00043835,120]
[330505241,1719526244324,-500.0,0.00043835,120]
[330505243,1719526244334,-500.0,0.00043835,120]
[330505245,1719526244343,-500.0,0.00043835,120]
[330505246,1719526244352,-500.0,0.00043835,120]
[330505247,1719526244361,-931.77,0.00043835,120]
[330505248,1719526244371,-500.0,0.00043835,120]
[330505249,1719526244380,-8422.17,0.00043835,120]
[330505250,1719526244389,-500.0,0.00043835,28]
[330505251,1719526244398,-562.63,0.00043835,120]
[330505252,1719526244407,-500.0,0.00043835,120]
[330505253,1719526244416,-500.0,0.00043835,120]
[330505254,1719526244426,-500.0,0.00043835,120]
[330505255,1719526244434,-500.0,0.00043835,7]
[330505256,1719526244443,-1740.25,0.00043835,120]
[330505257,1719526244453,-500.0,0.00043835,2]
[330505259,1719526244462,-500.0,0.00043835,120]
[330505260,1719526244471,-151.14610132,0.00043835,120]
[330505262,1719526244480,-500.0,0.00043835,120]
[330505263,1719526244489,-546.56188065,0.00043835,120]
[330505265,1719526244499,-661.94,0.00043835,120]
[330505266,1719526244508,-740.59,0.00043835,120]
[330505268,1719526244517,-503.49293221,0.00043835,120]
[330505270,1719526244527,-857.15,0.00043835,120]
[330505272,1719526244535,-363.87310258,0.00043835,120]
[330505274,1719526244545,-500.0,0.00043835,120]
[330505275,1719526244553,-500.0,0.00043835,120]
[330505276,1719526244563,-500.0,0.00043835,120]
[330505277,1719526244572,-523.3,0.00043835,120]
[330505278,1719526244584,-500.0,0.00043835,120]
[330505279,1719526244593,-500.0,0.00043835,120]
[330505280,1719526244603,-500.0,0.00043835,120]
[330505281,1719526244617,-500.0,0.00043835,120]
[330505282,1719526244626,-500.65,0.00043835,120]
[330505283,1719526244635,-990.45,0.00043835,120]
[330505284,1719526244644,-401.72390315,0.00043835,120]
[330505285,1719526244655,-500.0,0.00043835,120]
[330505286,1719526244664,-500.0,0.00043835,120]
[330505287,1719526244673,-2379.08,0.00043835,120]
[330505288,1719526244683,-500.0,0.00043835,120]
[330505289,1719526244695,-500.0,0.00043835,120]
[330505290,1719526244705,-500.0,0.00043835,120]
[330505291,1719526244714,-686.81,0.00043835,120]
[330505292,1719526244833,-500.0,0.00043835,120]
[330505293,1719526244846,-250.0,0.00043835,120]
[330505294,1719526244856,-633.3,0.00043835,120]
[330505295,1719526244865,-1484.51,0.00043835,120]
[330505296,1719526244875,-603.46,0.00043835,120]
[330505297,1719526244884,-500.0,0.00043835,120]
[330505298,1719526244894,-571.36581668,0.00043835,120]
[330505299,1719526244903,-977.24,0.00043835,120]
[330505300,1719526244913,-500.0,0.00043835,120]
[330505301,1719526244922,-705.08,0.00043835,120]
[330505302,1719526244931,-269.82159585,0.00043835,120]